bitfinex-derivatives/quotes_SOLF0:USTF0_20250919
["timestamp","ask_amount","ask_price","bid_price","bid_amount"]
[1758295862829,4.44346837,237.79,237.66,7.27]
[1758295863331,58.8488,237.78,237.66,7.27]
[1758295863933,58.8503,237.77,237.57,7.27]
[1758295864331,4.44346837,237.79,237.63,7.27]
[1758295864630,109.66,237.78,237.63,7.27]
[1758295864830,3.7838,237.74,237.63,7.27]
[1758295865025,65.88,237.75,237.63,7.27]
[1758295865327,3.7843,237.7,237.63,7.27]
[1758295865829,65.88,237.75,237.63,7.27]
[1758295866226,58.8533,237.76,237.63,7.27]
[1758295866423,58.859,237.74,237.5,63.63201659]
[1758295866623,58.8677,237.7,237.51,7.27]
[1758295866826,58.8677,237.7,237.51,20.03486611]
[1758295867020,3.7849,237.66,237.57,7.27]
[1758295867226,2.87299676,237.65,237.57,7.27]
[1758295867627,2.87299676,237.64,237.57,7.27]
[1758295867829,2.87299676,237.63,237.57,7.27]
[1758295868030,109.64,237.69,237.57,7.27]
[1758295868227,2.82522165,237.68,237.57,7.27]
[1758295868427,2.82522165,237.67,237.57,7.27]
[1758295868730,2.82522165,237.66,237.57,7.27]
[1758295868930,6.61042165,237.65,237.57,7.27]
[1758295869134,2.82522165,237.64,237.57,7.27]
[1758295869324,3.7848,237.67,237.57,7.27]
[1758295869529,2.82320114,237.66,237.57,7.27]
[1758295869728,2.82320114,237.65,237.57,7.27]
[1758295869927,26.3,237.69,237.57,7.27]
[1758295870123,2.823513,237.68,237.57,7.27]
[1758295870325,2.823513,237.67,237.57,7.27]
[1758295870529,2.823513,237.66,237.57,7.27]
[1758295870730,2.823513,237.65,237.57,7.27]
[1758295870931,2.823513,237.64,237.57,7.27]
[1758295871127,2.823513,237.63,237.57,7.27]
[1758295871331,29.6045,237.69,237.57,7.27]
[1758295871631,2.82106741,237.68,237.57,7.27]
[1758295871836,6.60586741,237.67,237.57,7.27]
[1758295872134,2.82106741,237.66,237.57,7.27]
[1758295872330,2.82106741,237.65,237.57,7.27]
[1758295872536,3.7851,237.65,237.57,7.27]
[1758295873737,2.81921345,237.64,237.48,7.27]
[1758295873936,2.81921345,237.63,237.48,7.27]
[1758295874138,58.875,237.67,237.48,7.27]
[1758295874330,2.81823786,237.66,237.48,7.27]
[1758295874527,2.81823786,237.65,237.48,7.27]
[1758295874835,2.81823786,237.64,237.51,7.27]
[1758295875033,65.00409572,237.71,237.51,7.27]
[1758295875227,112.37836438,237.7,237.51,7.27]
[1758295875431,2.81836438,237.69,237.51,7.27]
[1758295875634,2.81836438,237.68,237.53,7.27]
[1758295875936,2.81836438,237.67,237.53,7.27]
[1758295876239,2.81836438,237.66,237.53,7.27]
[1758295876530,3.7863,237.58,237.53,7.27]
[1758295877533,3.7866,237.56,237.48,7.27]
[1758295877738,2.3176554,237.55,237.43,7.27]
[1758295878841,3.7869,237.54,237.44,3.7884]
[1758295879339,2.3176554,237.55,237.45,7.27]
[1758295879639,3.7871,237.53,237.45,7.27]
[1758295880243,3.7873,237.52,237.45,7.27]
[1758295880645,58.9024,237.56,237.45,7.27]
[1758295880945,3.7869,237.54,237.45,7.27]
[1758295881145,58.8998,237.57,237.45,7.27]
[1758295881344,112.32804574,237.56,237.45,7.27]
[1758295881647,109.52,237.56,237.45,7.27]
[1758295882147,3.7875,237.5,237.45,7.27]
[1758295882543,58.9096,237.53,237.4,7.27]
[1758295882743,3.7879,237.48,237.4,7.27]
[1758295883247,109.52,237.52,237.4,7.27]
[1758295883442,3.7883,237.45,237.4,7.27]
[1758295883638,109.52,237.52,237.4,7.27]
[1758295883841,109.52,237.52,237.37,7.27]
[1758295884037,3.788,237.47,237.37,7.27]
[1758295884741,3.7876,237.5,237.37,11.0595]
[1758295884951,58.893,237.6,237.38,58.9463]
[1758295885146,112.33024769,237.59,237.39,7.27]
[1758295885347,2.83024769,237.58,237.39,7.27]
[1758295885551,2.83024769,237.57,237.39,7.27]
[1758295885749,90.42,237.56,237.39,7.27]
[1758295886048,3.7868,237.54,237.43,7.27]
[1758295886749,3.7872,237.52,237.43,7.27]
[1758295889853,3.7868,237.54,237.43,7.27]
[1758295890053,73.86,237.56,237.43,7.27]
[1758295890953,3.7873,237.51,237.43,7.27]
[1758295891349,58.917,237.5,237.31,12.75992393]
[1758295891552,84.94,237.52,237.34,6.69]
[1758295892054,3.7876,237.5,237.38,3.7894]
[1758295892259,3.7876,237.5,237.39,6.69]
[1758295892657,3.7875,237.5,237.34,6.69]
[1758295892853,104.4483,237.54,237.34,6.69]
[1758295893156,3.7875,237.5,237.39,3.7892]
[1758295893353,3.7875,237.5,237.4,6.69]
[1758295894456,58.9125,237.52,237.4,6.69]
[1758295894656,2.82909478,237.51,237.4,6.69]
[1758295894858,3.7881,237.47,237.32,6.69]
[1758295895048,3.7881,237.47,237.37,6.69]
[1758295895452,3.7881,237.47,237.38,3.7894]
[1758295895756,3.7881,237.47,237.39,6.69]
[1758295895959,58.9171,237.5,237.39,6.69]
[1758295896361,58.9204,237.49,237.39,6.69]
[1758295896562,3.7886,237.43,237.33,6.69]
[1758295896761,58.9255,237.47,237.33,6.69]
[1758295897463,58.9218,237.48,237.33,6.69]
[1758295897464,3.789,237.41,237.33,6.69]
[1758295897862,58.9302,237.45,237.33,6.69]
[1758295898166,3.7891,237.4,237.33,6.69]
[1758295900659,1.48481774,237.41,237.33,6.69]
[1758295900861,1.48481774,237.35,237.25,6.69]
[1758295901373,1.48481774,237.32,237.25,6.69]
[1758295903075,5.27401774,237.4,237.27,6.69]
[1758295903471,3.7894,237.38,237.27,6.69]
[1758295903775,1.48481774,237.37,237.27,6.69]
[1758295904672,1.48481774,237.34,237.27,6.69]
[1758295905070,58.9347,237.43,237.27,6.69]
[1758295905371,1.48481774,237.38,237.27,6.69]
[1758295905570,5.27421774,237.38,237.27,6.69]
[1758295906074,3.7897,237.36,237.27,6.69]
[1758295907275,1.48481774,237.38,237.27,6.69]
[1758295908072,3.7895,237.37,237.27,6.69]
[1758295908573,1.48481774,237.35,237.27,6.69]
[1758295909372,1.48481774,237.39,237.27,6.69]
[1758295909775,30.2889,237.41,237.31,6.69]
[1758295909776,5.27371774,237.41,237.31,6.69]
[1758295910274,1.48481774,237.41,237.31,6.69]
[1758295910473,3.7885,237.44,237.32,3.7903]
[1758295910677,4.31299289,237.43,237.33,6.69]
[1758295910877,1.48481774,237.43,237.33,6.69]
[1758295911078,1.48481774,237.45,237.3,6.69]
[1758295911271,1.48481774,237.45,237.33,6.69]
[1758295911776,1.48481774,237.45,237.35,3.7899]
[1758295911974,1.48481774,237.45,237.36,6.69]
[1758295912171,1.48481774,237.42,237.36,6.69]
[1758295912877,1.48481774,237.43,237.36,6.69]
[1758295913071,2.83027532,237.42,237.36,6.69]
[1758295913267,4.44346837,237.52,237.36,6.69]
[1758295913470,2.83127035,237.51,237.38,6.69]
[1758295913670,1.48481774,237.49,237.38,6.69]
[1758295913867,2.83127035,237.48,237.38,6.69]
[1758295914070,1.48481774,237.5,237.38,6.69]
[1758295914272,2.81939698,237.49,237.38,6.69]
[1758295914474,1.48481774,237.5,237.38,6.69]
[1758295914673,1.48481774,237.51,237.38,6.69]
[1758295914878,2.82065067,237.5,237.38,6.69]
[1758295915078,1.48481774,237.51,237.41,6.69]
[1758295915278,2.82226182,237.5,237.41,6.69]
[1758295915473,1.48481774,237.51,237.41,6.69]
[1758295915676,1.48481774,237.48,237.41,6.69]
[1758295915876,2.82226407,237.47,237.41,6.69]
[1758295916076,2.82151511,237.46,237.31,6.69]
[1758295916274,6.60981511,237.45,237.33,3.7901]
[1758295916477,2.82240479,237.44,237.34,6.69]
[1758295916679,58.9206,237.49,237.34,6.69]
[1758295916982,2.8224041,237.48,237.34,6.69]
[1758295917179,2.8224041,237.47,237.34,6.69]
[1758295917475,2.8224041,237.46,237.34,6.69]
[1758295917677,2.8224041,237.45,237.34,6.69]
[1758295917878,2.8224041,237.44,237.36,6.69]
[1758295918071,3.7881,237.47,237.36,6.69]
[1758295918273,2.82459141,237.46,237.36,6.69]
[1758295918475,6.61289141,237.45,237.36,6.69]
[1758295918780,2.82459141,237.44,237.36,6.69]
[1758295919176,6.61319141,237.44,237.36,6.69]
[1758295919383,2.82459141,237.43,237.36,6.69]
[1758295920583,3.7888,237.42,237.36,6.69]
[1758295920779,3.7888,237.42,237.3,3.7906]
[1758295920780,2.82725827,237.41,237.31,6.92]
[1758295921084,58.9297,237.45,237.31,6.92]
[1758295921284,3.7891,237.4,237.31,6.92]
[1758295922175,3.7894,237.38,237.31,6.92]
[1758295922578,3.7897,237.36,237.26,6.92]
[1758295922884,58.9435,237.4,237.26,6.92]
[1758295923086,2.82880633,237.39,237.26,6.92]
[1758295923388,2.82880633,237.38,237.26,6.92]
[1758295923584,2.82880633,237.37,237.26,6.92]
[1758295923786,2.82880633,237.36,237.26,6.92]
[1758295924087,2.82880633,237.35,237.26,6.92]
[1758295924284,2.82880633,237.34,237.26,6.92]
[1758295924480,2.82880633,237.33,237.26,6.92]
[1758295924676,4.44346837,237.42,237.26,6.92]
[1758295924881,2.82880742,237.41,237.26,58.9753]
[1758295925080,2.82880742,237.4,237.27,6.92]
[1758295925281,31.5,237.44,237.28,6.92]
[1758295925482,58.9368,237.42,237.28,6.92]
[1758295925683,58.9456,237.39,237.28,6.92]
[1758295925980,3.7901,237.34,237.28,6.92]
[1758295927589,3.7904,237.32,237.2,6.92]
[1758295928484,109.22,237.34,237.2,6.92]
[1758295929182,3.791,237.28,237.2,6.92]
[1758295929486,62.70976454,237.35,237.2,6.92]
[1758295929487,109.22,237.31,237.2,6.92]
[1758295930686,3.7913,237.26,237.2,6.92]
[1758295931986,3.7909,237.29,237.2,6.92]
[1758295932783,3.7912,237.27,237.2,6.92]
[1758295932979,109.2,237.34,237.2,6.92]
[1758295933185,3.7904,237.32,237.22,6.92]
[1758295934789,318.58,237.39,237.22,6.92]
[1758295934988,220.4858934,237.38,237.22,6.92]
[1758295935787,3.7898,237.36,237.25,3.7914]
[1758295935988,3.7898,237.36,237.26,6.92]
[1758295936988,58.9494,237.37,237.26,6.92]
[1758295937190,58.9494,237.37,237.16,6.92]
[1758295937590,58.9551,237.35,237.21,6.92]
[1758295938184,3.7908,237.3,237.21,6.92]
[1758295939291,3.75466454,237.36,237.21,6.92]
[1758295940096,3.7905,237.32,237.21,6.92]
[1758295941094,3.7907,237.3,237.21,6.92]
[1758295941896,3.791,237.28,237.21,6.92]
[1758295944896,3.7914,237.26,237.21,6.92]
[1758295945092,58.9669,237.3,237.13,6.92]
[1758295945497,3.7911,237.27,237.13,6.92]
[1758295946299,3.7915,237.26,237.15,3.7929]
[1758295946801,58.971,237.29,237.16,6.92]
[1758295947006,58.9717,237.28,237.16,6.92]
[1758295947201,168.1241,237.31,237.16,6.92]
[1758295947398,3.7913,237.26,237.16,6.92]
[1758295947700,58.9641,237.31,237.16,6.92]
[1758295947701,58.9695,237.29,237.16,6.92]
[1758295947902,58.9716,237.28,237.16,6.92]
[1758295948708,109.12,237.3,237.16,6.92]
[1758295949506,3.7917,237.24,237.16,6.92]
[1758295950502,109.1,237.27,237.16,6.92]
[1758295950904,109.1,237.27,237.16,10.7129]
[1758295951307,71.5794,237.37,237.17,6.82]
[1758295951507,168.0516,237.36,237.2,6.82]
[1758295952007,3.7906,237.31,237.2,6.82]
[1758295952202,115.04055794,237.38,237.2,6.82]
[1758295952398,109.08,237.37,237.2,6.82]
[1758295953504,111.2858934,237.38,237.24,6.82]
[1758295953909,109.08,237.37,237.24,6.82]
[1758295954706,3.7902,237.34,237.24,6.82]
[1758295955504,3.7902,237.34,237.24,10.6115]
[1758295955703,109.06,237.34,237.24,10.6115]
[1758295955905,109.06,237.34,237.24,6.82]
[1758295956407,112.85,237.34,237.26,3.7913]
[1758295957103,112.85,237.34,237.24,6.82]
[1758295958211,3.7897,237.36,237.24,6.82]
[1758295958410,112.8297,237.36,237.24,6.82]
[1758295959511,112.8297,237.36,237.27,6.82]
[1758295960010,3.7897,237.36,237.28,3.7909]
[1758295960213,322.3693,237.39,237.29,6.82]
[1758295960412,431.3693,237.39,237.29,6.82]
[1758295960715,58.9279,237.46,237.29,6.82]
[1758295961009,109.0,237.41,237.29,6.82]
[1758295961603,3.7892,237.39,237.31,3.7903]
[1758295961814,109.0,237.41,237.32,6.82]
[1758295962206,3.7893,237.39,237.32,6.82]
[1758295962714,109.0,237.41,237.32,6.82]
[1758295963307,3.7891,237.4,237.32,6.82]
[1758295963715,109.0,237.41,237.32,6.82]
[1758295964015,108.96,237.41,237.32,6.82]
[1758295964512,108.96,237.41,237.32,10.6103]
[1758295965721,108.96,237.41,237.32,6.82]
[1758295966819,108.96,237.41,237.32,10.6103]
[1758295967709,3.7884,237.44,237.32,10.6103]
[1758295967910,4.44346837,237.47,237.32,6.82]
[1758295968216,108.92,237.43,237.32,6.82]
[1758295969120,108.92,237.43,237.34,3.79]
[1758295970815,112.6884,237.44,237.34,3.79]
[1758295971618,3.7887,237.43,237.34,3.79]
[1758295972527,3.7887,237.43,237.35,6.82]
[1758295974626,112.6483,237.45,237.35,6.82]
[1758295975124,3.7886,237.43,237.35,6.82]
[1758295977222,112.6483,237.45,237.35,6.82]
[1758295977622,108.86,237.45,237.35,6.82]
[1758295977828,108.86,237.45,237.27,6.82]
[1758295978220,108.86,237.45,237.29,6.82]
[1758295978428,58.9346,237.43,237.29,6.82]
[1758295978731,167.7374,237.42,237.29,6.82]
[1758295979024,108.8,237.42,237.29,6.82]
[1758295979519,3.7895,237.38,237.29,6.82]
[1758295979719,108.8,237.42,237.29,6.82]
[1758295980321,108.78,237.41,237.29,6.82]
[1758295980521,108.78,237.4,237.29,6.82]
[1758295980719,3.7895,237.38,237.29,6.82]
[1758295981031,108.78,237.41,237.29,6.82]
[1758295981835,2.32120219,237.38,237.29,6.82]
[1758295982232,3.7897,237.36,237.29,6.82]
[1758295982529,111.08120219,237.38,237.29,6.82]
[1758295982732,3.7897,237.37,237.29,6.82]
[1758295983132,58.9328,237.44,237.29,6.82]
[1758295983331,3.7889,237.41,237.29,6.82]
[1758295983526,73.63191416,237.48,237.29,6.82]
[1758295983834,90.6,237.45,237.29,6.82]
[1758295984332,3.789,237.41,237.3,7.01]
[1758295984831,0.7334345,237.44,237.3,7.01]
[1758295985034,58.9394,237.41,237.3,7.01]
[1758295985232,58.9427,237.4,237.3,7.01]
[1758295985431,3.7902,237.34,237.3,7.01]
[1758295985828,3.7902,237.34,237.24,3.7916]
[1758295986030,3.7902,237.34,237.25,7.01]
[1758295986433,3.7902,237.34,237.25,3.7913]
[1758295986633,3.7902,237.34,237.26,7.01]
[1758295987936,3.7897,237.36,237.22,65.9962]
[1758295988133,3.7897,237.36,237.25,7.01]
[1758295988527,3.7894,237.38,237.3,7.01]
[1758295989447,58.9527,237.36,237.23,7.01]
[1758295990335,58.9551,237.35,237.23,7.01]
[1758295991730,58.9491,237.37,237.23,7.01]
[1758295992633,58.9573,237.34,237.23,7.01]
[1758295992833,61.28080219,237.33,237.23,7.01]
[1758295993035,58.9668,237.3,237.19,7.01]
[1758295993945,61.28080219,237.33,237.19,7.01]
[1758295994832,3.7912,237.27,237.19,7.01]
[1758295995142,61.28080219,237.33,237.19,7.01]
[1758295996142,3.7908,237.29,237.19,7.01]
[1758295997139,58.9429,237.4,237.19,7.01]
[1758295997334,108.64,237.39,237.19,7.01]
[1758295998035,108.64,237.39,237.25,7.01]
[1758295998236,58.9386,237.42,237.25,7.01]
[1758295998438,3.7894,237.38,237.23,7.01]
[1758295998637,108.64,237.4,237.23,7.01]
[1758295999839,3.7897,237.37,237.27,10.801]
[1758296000237,3.7897,237.37,237.27,7.01]
[1758296000638,108.62,237.4,237.27,7.01]
[1758296000639,3.7891,237.4,237.27,7.01]
[1758296001344,3.7894,237.39,237.27,7.01]
[1758296001546,110.68024438,237.41,237.27,7.01]
[1758296002338,3.7898,237.36,237.27,7.01]
[1758296002539,110.68024438,237.41,237.27,7.01]
[1758296002739,219.28024438,237.41,237.27,7.01]
[1758296003337,110.68024438,237.41,237.27,7.01]
[1758296003536,58.9466,237.38,237.27,7.01]
[1758296003945,58.9445,237.39,237.27,7.01]
[1758296004747,58.9616,237.32,237.18,7.01]
[1758296004944,2.32120219,237.34,237.18,7.01]
[1758296005136,3.792,237.22,237.18,7.01]
[1758296005340,58.9786,237.26,237.13,167.51273775]
[1758296005543,58.9866,237.22,237.13,167.51273775]
[1758296005944,58.9816,237.24,237.13,167.51273775]
[1758296006142,58.9918,237.2,237.06,7.01]
[1758296006347,3.7931,237.15,237.06,7.01]
[1758296006648,58.9964,237.18,237.06,7.01]
[1758296006851,58.9991,237.17,237.06,7.01]
[1758296007147,3.7934,237.13,237.06,7.01]
[1758296007348,110.88120219,237.19,237.06,7.01]
[1758296007543,3.793,237.16,237.06,7.01]
[1758296007744,108.56,237.19,237.06,7.01]
[1758296008244,58.9963,237.18,237.06,7.01]
[1758296008648,3.7932,237.14,237.06,7.01]
[1758296009151,108.56,237.19,237.06,7.01]
[1758296009352,3.7928,237.17,237.06,7.01]
[1758296009552,108.56,237.16,237.06,7.01]
[1758296010051,3.7931,237.15,237.06,7.01]
[1758296012350,108.56,237.18,237.06,7.01]
[1758296012752,3.7929,237.16,237.06,7.01]
[1758296013856,3.7929,237.16,237.07,3.7943]
[1758296014458,3.7929,237.16,237.06,7.01]
[1758296014851,3.7936,237.12,237.06,7.01]
[1758296015159,58.9986,237.18,237.06,7.01]
[1758296015360,108.54,237.17,237.06,7.01]
[1758296015763,58.9986,237.18,237.06,7.01]
[1758296016060,3.7934,237.13,237.06,7.01]
[1758296016261,108.52,237.2,237.06,7.01]
[1758296016459,58.9967,237.18,236.96,59.0511]
[1758296016761,58.9997,237.17,236.97,6.68]
[1758296016958,3.7935,237.13,237.02,3.7951]
[1758296017162,58.9898,237.21,237.0,6.68]
[1758296017163,98.38,237.16,237.0,6.68]
[1758296017565,3.7928,237.17,237.05,6.68]
[1758296017863,112.3128,237.17,237.05,6.68]
[1758296018058,3.7931,237.15,237.05,10.4746]
[1758296018456,58.9854,237.23,237.05,6.68]
[1758296018660,108.52,237.22,237.05,6.68]
[1758296018854,3.7927,237.18,237.05,10.4746]
[1758296019260,3.7927,237.18,237.05,6.68]
[1758296019657,3.7927,237.18,237.06,3.7944]
[1758296020261,3.7927,237.18,237.05,6.68]
[1758296020460,3.7927,237.18,237.08,3.7941]
[1758296021459,3.7927,237.18,237.09,6.68]
[1758296023260,108.5,237.21,237.09,6.68]
[1758296023465,12.63676978,237.26,237.12,6.68]
[1758296023656,12.63676978,237.26,237.13,59.0085]
[1758296023970,12.63676978,237.26,237.15,6.68]
[1758296024361,3.7911,237.28,237.15,6.68]
[1758296024762,3.7911,237.28,237.21,10.472]
[1758296024962,3.7907,237.3,237.21,10.472]
[1758296025162,156.2203,237.33,237.21,6.68]
[1758296025668,3.791,237.28,237.21,6.68]
[1758296028357,3.7906,237.31,237.21,6.68]
[1758296028971,58.9622,237.32,237.16,10.4727]
[1758296029171,58.9679,237.3,237.16,6.68]
[1758296029469,58.9744,237.27,237.07,6.68]
[1758296029770,3.7914,237.26,237.12,3.7935]
[1758296029969,58.969,237.29,237.12,10.4735]
[1758296030271,45.24,237.26,237.12,10.4735]
[1758296030670,3.7919,237.23,237.12,10.4735]
[1758296031668,3.7922,237.21,237.12,6.68]
[1758296032772,3.7925,237.19,237.12,6.68]
[1758296033167,3.7919,237.23,237.12,6.68]
[1758296033766,3.7921,237.21,237.12,6.68]
[1758296034873,3.7918,237.23,237.12,6.68]
[1758296035867,3.7918,237.23,237.08,59.0211]
[1758296035868,3.7918,237.23,237.14,6.68]
[1758296036367,3.7914,237.26,237.17,6.68]
[1758296036566,106.569,237.29,237.17,6.68]
[1758296036567,60.45559876,237.29,237.17,6.68]
[1758296037770,3.7918,237.24,237.17,6.68]
[1758296037973,58.9622,237.32,237.17,8.16659876]
[1758296038179,1.48659876,237.31,237.17,8.16659876]
[1758296038472,5.27709876,237.31,237.17,8.16659876]
[1758296038668,5.27709876,237.31,237.21,6.85]
[1758296038973,3.7905,237.31,237.21,6.85]
[1758296041972,1.48659876,237.32,237.21,6.85]
[1758296042173,1.48659876,237.29,237.21,6.85]
[1758296042567,3.791,237.28,237.21,6.85]
[1758296043076,1.48659876,237.29,237.21,6.85]
[1758296043377,1.48659876,237.32,237.21,6.85]
[1758296045873,3.7908,237.3,237.21,6.85]
[1758296048177,5.27739876,237.3,237.21,6.85]
[1758296048371,1.48659876,237.3,237.21,6.85]
[1758296048976,5.27739876,237.3,237.21,6.85]
[1758296049172,1.48659876,237.3,237.21,6.85]
[1758296050877,3.7909,237.29,237.21,6.85]
[1758296051278,1.48659876,237.3,237.21,6.85]
[1758296051484,1.48659876,237.3,237.21,8.33659876]
[1758296051879,5.27739876,237.3,237.21,8.33659876]
[1758296052685,3.791,237.28,237.21,8.33659876]
[1758296055185,63.39156837,237.38,237.21,8.33659876]
[1758296055386,1.48659876,237.35,237.21,8.33659876]
[1758296055586,58.9569,237.34,237.21,8.33659876]
[1758296055786,3.7909,237.29,237.21,8.33659876]
[1758296056081,1.48659876,237.29,237.21,6.85]
[1758296057185,58.9718,237.28,237.18,6.72]
[1758296057383,1.48659876,237.23,237.18,6.72]
[1758296057894,3.7927,237.18,237.12,6.72]
[1758296058187,1.48659876,237.2,237.12,6.72]
[1758296058890,5.27889876,237.2,237.12,6.72]
[1758296059287,1.48659876,237.2,237.12,6.72]
[1758296060889,3.7926,237.18,237.12,6.72]
[1758296061086,1.48659876,237.2,237.12,6.72]
[1758296061286,1.48659876,237.17,237.12,6.72]
[1758296061683,58.9875,237.22,237.12,6.72]
[1758296061890,1.48659876,237.18,237.12,6.72]
[1758296062697,3.7929,237.17,237.07,1.48659876]
[1758296062896,1.48659876,237.18,237.08,6.72]
[1758296063398,3.793,237.16,237.08,6.72]
[1758296064690,1.48659876,237.15,237.08,6.72]
[1758296066193,5.27969876,237.15,237.08,6.72]
[1758296066792,3.7934,237.13,237.05,6.72]
[1758296067593,1.48659876,237.12,237.01,6.72]
[1758296067786,1.48659876,237.08,237.01,6.72]
[1758296068594,3.7947,237.05,237.01,6.72]
[1758296068790,3.7947,237.05,236.97,6.94]
[1758296068988,1.48659876,237.08,236.97,6.94]
[1758296069195,3.7954,237.01,236.97,6.94]
[1758296069395,3.7954,237.01,236.93,318.72]
[1758296069396,1.48659876,237.02,236.86,6.94]
[1758296069592,1.48659876,237.04,236.91,1.48659876]
[1758296069790,3.7951,237.02,236.92,6.94]
[1758296070592,1.48659876,237.08,236.97,1.48659876]
[1758296070797,12.5900584,237.14,236.98,6.94]
[1758296070798,2.87402865,237.07,236.98,6.94]
[1758296070997,1.48659876,237.09,236.98,6.94]
[1758296071191,2.8726269,237.08,236.98,6.94]
[1758296071392,1.48659876,237.09,236.98,6.94]
[1758296071687,3.7948,237.04,236.98,6.94]
[1758296072994,3.7944,237.07,236.98,6.94]
[1758296075699,5.28059876,237.1,236.99,6.94]
[1758296075889,1.48659876,237.1,236.99,6.94]
[1758296076289,3.7942,237.08,236.99,6.94]
[1758296078996,3.7945,237.07,236.99,6.94]
[1758296079193,1.48659876,237.07,236.99,6.94]
[1758296079798,2.32692633,237.08,236.99,6.94]
[1758296080891,3.7949,237.04,236.99,6.94]
[1758296081195,2.32692633,237.08,236.99,6.94]
[1758296081391,59.0271,237.06,236.9,3.7971]
[1758296081596,61.35852633,237.04,236.91,6.94]
[1758296081995,3.7956,237.0,236.91,6.94]
[1758296083902,3.7958,236.98,236.91,6.94]
[1758296084106,96.54,237.04,236.91,6.94]
[1758296084604,3.7956,237.0,236.91,6.94]
[1758296085993,3.7958,236.99,236.91,6.94]
[1758296086506,59.0513,236.96,236.8,6.94]
[1758296086695,12.46749398,236.97,236.8,6.94]
[1758296086898,109.78,236.97,236.8,6.94]
[1758296087298,109.78,236.98,236.81,6.94]
[1758296087498,113.04897691,236.99,236.81,6.94]
[1758296087698,113.04897691,236.99,236.85,6.94]
[1758296088798,113.04897691,236.99,236.83,2.32692633]
[1758296088799,3.7958,236.98,236.87,2.32692633]
[1758296089001,113.04897691,236.99,236.88,6.94]
[1758296089503,116.84457691,236.99,236.9,3.797]
[1758296089699,116.84457691,236.99,236.91,6.94]
[1758296089903,113.04897691,236.99,236.91,6.94]
[1758296091207,113.04897691,236.99,236.93,6.94]
[1758296091803,3.7955,237.0,236.93,6.94]
[1758296092505,3.7951,237.03,236.93,6.94]
[1758296093106,3.7951,237.03,236.93,3.7966]
[1758296093303,3.7951,237.03,236.94,6.94]
[1758296093607,3.7946,237.06,236.95,3.7962]
[1758296093807,59.0222,237.08,236.94,6.94]
[1758296094011,2.32692633,237.1,236.94,6.94]
[1758296094200,3.7945,237.07,236.97,3.7959]
[1758296094807,3.794,237.1,236.99,3.7955]
[1758296095007,3.794,237.1,237.0,6.94]
[1758296095204,109.42,237.16,237.0,6.94]
[1758296095409,2.86517202,237.15,237.04,6.94]
[1758296095607,109.46,237.19,237.04,6.94]
[1758296095910,2.86554082,237.18,237.04,6.94]
[1758296096210,58.9886,237.22,237.04,6.94]
[1758296096211,150.2886,237.22,237.04,6.94]
[1758296096409,150.2886,237.22,237.09,3.794]